bitfinex/quotes_ETHUSD_20240916
["timestamp","ask_amount","ask_price","bid_price","bid_amount"]
[1726485617104,4.32938,2309.8,2309.7,2.66395042]
[1726485617639,4.32938,2309.8,2309.7,2.72355462]
[1726485618025,4.32914,2310.0,2309.7,2.72355462]
[1726485618272,0.0383174,2310.2,2309.9,2.4185]
[1726485618273,4.32895,2310.1,2309.9,2.4185]
[1726485618450,4.32881,2310.1,2310.0,0.50453724]
[1726485618801,4.3670474,2310.2,2310.0,0.50453724]
[1726485619255,4.3670474,2310.2,2310.1,2.4069]
[1726485619966,4.3670474,2310.2,2310.1,7.08005506]
[1726485619967,0.0383174,2310.2,2310.1,7.08005506]
[1726485620130,0.0383174,2310.2,2310.1,7.16661602]
[1726485621661,0.0383174,2310.2,2310.1,2.83780602]
[1726485622356,0.0383174,2310.2,2310.1,2.75124506]
[1726485623244,4.3669374,2310.2,2310.1,2.75124506]
[1726485625778,0.0383174,2310.2,2310.1,2.75124506]
[1726485626463,0.0383174,2310.2,2310.1,7.08005506]
[1726485626859,0.0383174,2310.2,2310.1,2.83780229]
[1726485628149,0.0383174,2310.2,2310.1,2.75124506]
[1726485630118,0.0383174,2310.2,2310.1,11.29887491]
[1726485630996,0.0383174,2310.2,2310.1,6.97006491]
[1726485631310,0.0383174,2310.2,2310.1,7.05662431]
[1726485631875,0.0383174,2310.2,2310.1,2.75124506]
[1726485632321,0.0383174,2310.2,2310.1,2.80065636]
[1726485633718,0.0383174,2310.2,2310.1,7.01947621]
[1726485633921,0.0383174,2310.2,2310.1,11.43484667]
[1726485635621,4.3275,2310.8,2310.2,2.287]
[1726485635831,4.3657674,2310.9,2310.7,2.287]
[1726485635981,4.3275,2310.8,2310.7,2.287]
[1726485636179,4.3657674,2310.9,2310.7,2.5157]
[1726485637701,4.3656674,2310.9,2310.7,2.5157]
[1726485638631,4.3275,2310.8,2310.7,2.5157]
[1726485638797,4.3277,2310.7,2310.5,2.415]
[1726485639000,8.65555,2310.7,2310.6,0.2415]
[1726485639533,0.0383174,2310.9,2310.3,2.3253]
[1726485639534,4.32821,2310.5,2310.3,2.3253]
[1726485639742,4.32844,2310.3,2310.2,7.4]
[1726485639901,4.32844,2310.3,2310.1,2.61053246]
[1726485640314,4.32825,2310.4,2310.1,2.61053246]
[1726485640511,4.32825,2310.4,2310.2,0.26105325]
[1726485642097,4.32844,2310.3,2310.2,0.26105325]
[1726485642293,4.32844,2310.3,2310.1,2.3253]
[1726485643536,4.32826,2310.4,2310.1,2.3253]
[1726485643844,4.32826,2310.4,2310.1,2.97971198]
[1726485644052,4.32821,2310.5,2310.2,1.94672121]
[1726485644241,4.32821,2310.5,2310.4,2.4255]
[1726485644636,4.32789,2310.6,2310.4,4.37222121]
[1726485644944,4.32775,2310.7,2310.4,4.37222121]
[1726485645184,4.32775,2310.7,2310.4,4.81809924]
[1726485647055,4.32775,2310.7,2310.5,0.10785762]
[1726485647372,4.5308574,2310.9,2310.5,0.10785762]
[1726485647373,0.0383174,2310.9,2310.7,2.3845]
[1726485647661,0.0383174,2310.9,2310.8,2.28036856]
[1726485648016,0.0383174,2310.9,2310.8,0.44150497]
[1726485648620,0.0383174,2310.9,2310.8,2.81900497]
[1726485648895,0.0383174,2310.9,2310.8,2.73246287]
[1726485653352,0.0383174,2310.9,2310.8,2.48535762]
[1726485653534,0.0383174,2310.9,2310.8,0.10785762]
[1726485653928,0.0383174,2310.9,2310.6,2.36544152]
[1726485654230,0.0383174,2310.9,2310.8,0.10755073]
[1726485654748,0.0383174,2310.9,2310.6,2.36544152]
[1726485654917,0.0383174,2310.9,2310.8,0.10755073]
[1726485655116,0.0383174,2310.9,2310.7,0.66933415]
[1726485655320,0.0383174,2310.9,2310.8,0.10755073]
[1726485655553,0.0383174,2310.9,2310.7,0.66933415]
[1726485655862,0.0383174,2310.9,2310.8,0.10755073]
[1726485656661,0.0383174,2310.9,2310.7,0.66933415]
[1726485656961,0.0383174,2310.9,2310.8,0.10755073]
[1726485657325,0.0383174,2310.9,2310.8,0.31423264]
[1726485657525,0.0383174,2310.9,2310.8,0.42178337]
[1726485659542,0.0383174,2310.9,2310.8,2.54505073]
[1726485660440,0.0383174,2310.9,2310.8,0.10755073]
[1726485660761,4.3656274,2310.9,2310.5,2.41074556]
[1726485661062,4.3656274,2310.9,2310.8,0.10725406]
[1726485661283,4.32751,2310.8,2310.6,1.14003683]
[1726485661439,4.3657774,2310.9,2310.5,2.3242]
[1726485661774,4.32751,2310.8,2310.5,2.3242]
[1726485661928,4.3278,2310.7,2310.6,0.10732566]
[1726485662127,4.3278,2310.7,2310.4,0.67072274]
[1726485662331,4.3278,2310.7,2310.5,0.10732566]
[1726485662541,4.32788,2310.6,2310.5,0.10732566]
[1726485662986,4.32788,2310.6,2310.3,2.3686]
[1726485663203,4.32788,2310.6,2310.5,0.10737681]
[1726485663467,4.32788,2310.6,2310.3,3.5496561]
[1726485663635,4.32788,2310.6,2310.5,0.10737681]
[1726485663833,4.32788,2310.6,2310.3,2.3686]
[1726485664313,4.32788,2310.6,2310.4,0.10737681]
[1726485665385,4.32756,2310.8,2310.4,0.10737681]
[1726485665583,4.3279,2310.6,2310.4,0.10737681]
[1726485665808,4.32771,2310.7,2310.4,0.10737681]
[1726485666105,4.32756,2310.8,2310.4,0.10737681]
[1726485666670,8.65519,2310.8,2310.4,0.10737681]
[1726485667314,4.32756,2310.8,2310.4,0.10737681]
[1726485667471,8.65519,2310.8,2310.4,0.10737681]
[1726485669429,4.32756,2310.8,2310.4,0.10737681]
[1726485671408,0.1651,2310.7,2310.4,0.10737681]
[1726485671749,4.32806,2310.5,2310.4,0.10737681]
[1726485672107,4.32828,2310.4,2310.1,3.2180763]
[1726485672302,4.49338,2310.4,2310.2,3.34171465]
[1726485672506,4.32844,2310.3,2310.2,0.10785762]
[1726485672719,4.32844,2310.3,2310.2,1.4014532]
[1726485672951,4.32844,2310.3,2310.2,0.10785762]
[1726485672952,4.87844,2310.3,2310.2,0.10785762]
[1726485673452,4.87844,2310.3,2309.9,3.2412763]
[1726485673655,4.87844,2310.3,2310.2,0.10787809]
[1726485673852,4.49391,2310.1,2309.9,0.8975763]
[1726485674012,4.32878,2310.2,2310.0,3.23475371]
[1726485674203,4.32878,2310.2,2309.9,0.8975763]
[1726485674400,4.32878,2310.2,2310.0,3.23476608]
[1726485674603,4.32878,2310.2,2309.9,0.8975763]
[1726485674802,4.32878,2310.2,2310.0,3.23463201]
[1726485675026,4.32878,2310.2,2309.9,0.8975763]
[1726485675248,4.32878,2310.2,2310.0,3.23468323]
[1726485675443,4.32873,2310.2,2309.9,0.8975763]
[1726485675606,0.55,2310.1,2310.0,1.29393566]
[1726485675808,0.55,2310.1,2309.7,3.1718763]
[1726485676053,0.55,2310.1,2309.8,4.13281803]
[1726485676209,4.32873,2310.2,2309.9,3.23532444]
[1726485676411,4.32873,2310.2,2309.8,0.8975763]
[1726485676711,4.32873,2310.2,2309.7,3.33862334]
[1726485676712,4.32873,2310.2,2309.9,1.29397745]
[1726485677021,4.32873,2310.2,2310.0,0.10831812]
[1726485677406,4.32873,2310.2,2309.8,2.3672]
[1726485677608,4.87873,2310.2,2310.1,0.10835906]
[1726485677846,4.49355,2310.3,2309.8,3.35135854]
[1726485678051,4.49355,2310.3,2310.1,0.1084]
[1726485678348,4.49355,2310.3,2310.2,0.1084]
[1726485678349,5.04355,2310.3,2310.2,0.1084]
[1726485678847,7.47,2310.7,2310.2,5.51343106]
[1726485679056,7.47,2310.7,2310.5,2.3418]
[1726485679239,7.47,2310.7,2310.6,4.21999327]
[1726485679555,0.0383174,2310.9,2310.6,0.10838977]
[1726485679556,4.3657974,2310.9,2310.6,0.10838977]
[1726485680048,4.32754,2310.8,2310.6,0.10838977]
[1726485680251,4.32769,2310.7,2310.6,0.10838977]
[1726485680408,5.04279,2310.7,2310.6,0.10838977]
[1726485680605,5.04279,2310.7,2310.2,5.11756957]
[1726485680910,5.04279,2310.7,2310.3,3.23353734]
[1726485681114,5.04279,2310.7,2310.4,0.10838977]
[1726485681338,5.04279,2310.7,2310.2,7.04985823]
[1726485681508,5.04279,2310.7,2310.3,3.34190022]
[1726485681709,5.04279,2310.7,2310.3,0.10838977]
[1726485681956,5.04279,2310.7,2310.4,1.29337491]
[1726485682105,5.04279,2310.7,2310.4,0.10838977]
[1726485684609,4.32788,2310.6,2310.4,0.10838977]
[1726485684808,5.04281,2310.7,2310.4,0.10838977]
[1726485686508,4.32788,2310.6,2310.4,0.10838977]
[1726485686859,4.32837,2310.4,2310.1,0.8975763]
[1726485687061,4.32844,2310.3,2310.2,1.29400619]
[1726485687355,4.49354,2310.3,2310.0,0.8975763]
[1726485687553,4.49354,2310.3,2310.1,3.23516864]
[1726485687778,4.49354,2310.3,2310.0,0.8975763]
[1726485687928,4.49354,2310.3,2310.1,1.29410357]
[1726485688256,4.32863,2310.2,2309.9,3.2894763]
[1726485688417,4.32863,2310.2,2310.0,3.23551873]
[1726485688615,4.32863,2310.2,2309.9,0.8975763]
[1726485688928,4.32863,2310.2,2310.0,1.29441021]
[1726485689132,4.32863,2310.2,2309.8,5.11756957]
[1726485689344,4.32863,2310.2,2309.9,3.23756477]
[1726485689543,4.32883,2310.1,2310.0,1.29502591]
[1726485689747,4.32883,2310.1,2309.8,0.8975763]
[1726485690064,4.32883,2310.1,2309.9,3.2377945]
[1726485690262,4.32883,2310.1,2309.8,0.8975763]
[1726485690427,4.32883,2310.1,2309.9,1.29492333]
[1726485690627,4.32883,2310.1,2309.7,0.8975763]
[1726485690828,4.32883,2310.1,2309.8,3.23718427]
[1726485691145,0.7151,2310.0,2309.6,0.8975763]
[1726485691451,0.1651,2309.6,2309.4,0.8975763]
[1726485691635,4.49491,2309.6,2309.5,1.29492841]
[1726485691836,5.04491,2309.6,2309.5,3.23721411]
[1726485692037,5.04491,2309.6,2309.5,1.40306228]
[1726485692236,9.37472,2309.6,2309.5,0.10813387]
[1726485692444,12.879211,2309.6,2309.5,0.10813387]
[1726485692630,4.33012,2309.4,2309.3,17.5813133]
[1726485692831,0.55,2309.4,2309.3,17.5813133]
[1726485693036,0.55,2309.4,2309.3,21.80130657]
[1726485693833,7.49487,2309.6,2309.3,21.80130657]
[1726485695071,4.33012,2309.4,2309.3,17.5813133]
[1726485695258,4.88012,2309.4,2309.3,17.5813133]
[1726485697579,4.32975,2309.6,2309.3,21.80130657]
[1726485698108,7.32958,2309.7,2309.3,22.62226581]
[1726485698308,4.32929,2309.9,2309.5,4.21999327]
[1726485698505,4.32929,2309.9,2309.5,6.58399327]
[1726485701759,4.32937,2309.8,2309.5,6.58399327]
[1726485701958,7.49417,2310.0,2309.7,4.21999327]
[1726485701959,0.55,2309.9,2309.7,4.21999327]
[1726485702164,7.32882,2310.1,2309.7,4.8783926]
[1726485703006,11.65774,2310.1,2309.7,4.8783926]
[1726485703362,7.32882,2310.1,2309.7,4.8783926]
[1726485704269,11.65776,2310.1,2309.7,4.8783926]
[1726485704891,4.329,2310.0,2309.7,4.8783926]
[1726485706392,7.32882,2310.1,2309.7,4.8783926]
[1726485707032,7.32882,2310.1,2309.8,0.11010957]
[1726485707323,4.87882,2310.1,2309.8,1.04193379]
[1726485707606,4.87882,2310.1,2309.9,2.53325113]
[1726485709418,4.87882,2310.1,2309.9,0.10975113]
[1726485710022,4.87882,2310.1,2309.7,7.2894926]
[1726485710221,4.87882,2310.1,2310.0,0.10975113]
[1726485710740,4.87882,2310.1,2309.7,6.63109327]
[1726485710943,4.87882,2310.1,2309.8,0.10975113]
[1726485711117,4.87882,2310.1,2309.7,6.63109327]
[1726485711317,4.87882,2310.1,2309.8,0.10975113]
[1726485711540,4.87882,2310.1,2309.7,6.63109327]
[1726485711853,4.3291,2310.0,2309.8,0.10975113]
[1726485712224,4.3292,2309.9,2309.5,6.49029327]
[1726485712422,4.3292,2309.9,2309.6,0.866004]
[1726485713933,4.32901,2310.0,2309.6,0.866004]
[1726485714343,0.55,2309.9,2309.6,0.866004]
[1726485714956,3.0,2310.2,2309.6,0.866004]
[1726485714957,7.32866,2310.2,2309.7,5.388616]
[1726485715173,0.55,2310.1,2309.9,4.21999327]
[1726485718490,0.55,2310.1,2309.8,2.4114]
[1726485718798,4.87882,2310.1,2309.8,2.4114]
[1726485719101,4.87882,2310.1,2309.6,2.3543]
[1726485719102,4.32902,2310.0,2309.6,2.3543]
[1726485719390,4.49412,2310.0,2309.6,2.3543]
[1726485719760,4.32938,2309.8,2309.4,2.4067]
[1726485720178,8.65886,2309.8,2309.4,2.4067]
[1726485720554,4.87957,2309.7,2309.4,2.4067]
[1726485720755,4.8793,2309.9,2309.4,2.4067]
[1726485721062,0.55,2309.6,2309.4,2.4067]
[1726485721292,0.55,2309.6,2309.3,21.80130657]
[1726485721293,0.7151,2309.6,2309.3,21.80130657]
[1726485721490,0.7151,2309.6,2309.4,1.2938405]
[1726485721664,0.7151,2309.6,2309.3,21.80130657]
[1726485721862,4.32932,2309.9,2309.4,1.29381969]
[1726485721863,0.7151,2309.8,2309.4,1.29381969]
[1726485722066,0.7151,2309.8,2309.4,0.1093416]
[1726485722262,5.04459,2309.8,2309.4,0.1093416]
[1726485722470,4.32956,2309.7,2309.4,0.1093416]
[1726485722753,0.55,2309.6,2309.4,0.1093416]
[1726485722998,0.55,2309.7,2309.4,0.1093416]
[1726485724103,4.32932,2309.9,2309.6,2.2765]
[1726485724326,0.55,2309.8,2309.4,3.05730105]
[1726485724495,0.55,2309.8,2309.3,29.30560287]
[1726485724698,0.55,2309.8,2309.5,0.10971022]
[1726485725020,0.55,2309.8,2309.6,0.10971022]
[1726485725378,0.55,2309.8,2309.3,37.1340636]
[1726485725594,3.55,2310.0,2309.7,0.10971022]
[1726485725831,3.55,2310.0,2309.6,2.4368]
[1726485726139,7.87905,2310.0,2309.8,0.10971022]
[1726485726289,3.55,2310.0,2309.6,2.4368]
[1726485726487,3.55,2310.0,2309.9,0.10971022]
[1726485726719,7.87908,2310.0,2309.6,2.4368]
[1726485726918,7.87908,2310.0,2309.9,0.10964877]
[1726485727105,7.87908,2310.0,2309.6,2.4368]
[1726485727302,7.87908,2310.0,2309.9,0.10960781]
[1726485727504,7.87908,2310.0,2309.6,2.4368]
[1726485727697,7.87908,2310.0,2309.9,0.10960781]
[1726485727886,7.87908,2310.0,2309.6,2.4368]
[1726485728443,7.87908,2310.0,2309.7,0.10960781]
[1726485729591,0.55,2309.8,2309.7,0.10960781]
[1726485729795,1.990928,2309.8,2309.7,0.10960781]
[1726485729990,1.990928,2309.8,2309.3,31.35950287]
[1726485730303,0.7151,2309.8,2309.7,0.1098433]
[1726485730490,0.7151,2309.8,2309.3,31.35950287]
[1726485730491,0.7151,2309.8,2309.5,4.21999327]
[1726485730689,0.7151,2309.8,2309.7,0.1098433]
[1726485730890,0.7151,2309.8,2309.5,4.21999327]
[1726485731136,0.7151,2309.8,2309.7,0.1098433]
[1726485731316,0.7151,2309.8,2309.6,0.10986378]
[1726485731672,0.7151,2309.8,2309.7,0.10986378]
[1726485732139,0.55,2309.9,2309.5,6.55489327]
[1726485732295,0.55,2309.9,2309.7,4.32985705]
[1726485732496,0.55,2309.9,2309.7,4.21999327]
[1726485732695,0.55,2309.9,2309.8,0.10986378]
[1726485733385,0.55,2309.9,2309.7,4.21999327]
[1726485733590,0.55,2309.9,2309.8,0.10986378]
[1726485734024,0.55,2309.9,2309.7,4.21999327]
[1726485734331,0.55,2309.9,2309.8,0.10986378]
[1726485734697,0.55,2309.9,2309.7,4.21999327]
[1726485734891,0.55,2309.9,2309.8,0.10986378]
[1726485735087,0.1651,2310.2,2309.9,2.3299]
[1726485735299,3.0,2310.3,2309.9,6.54989327]
[1726485735502,4.179829,2310.3,2310.0,0.10978186]
[1726485736117,8.508289,2310.3,2310.0,0.10978186]
[1726485736306,0.55,2310.2,2310.0,0.10978186]
[1726485744517,0.55,2310.2,2310.1,4.21999327]
[1726485744683,0.1651,2310.4,2310.1,7.45974141]
[1726485744887,0.1651,2310.4,2310.2,1.29595861]
[1726485745084,7.49298,2310.6,2310.1,4.32953964]
[1726485745287,0.1651,2310.6,2310.3,4.32940655]
[1726485745493,0.1651,2310.6,2310.3,6.47149327]
[1726485745796,0.55,2310.5,2310.4,0.10941328]
[1726485745972,0.55,2310.6,2310.4,0.10941328]
[1726485746178,4.49262,2310.8,2310.4,0.10941328]
[1726485746884,3.0,2310.7,2310.4,0.10941328]
[1726485747389,4.49262,2310.8,2310.5,4.21999327]
[1726485747390,0.1651,2310.8,2310.5,4.21999327]
[1726485747586,0.0383174,2310.9,2310.5,4.21999327]
[1726485748020,0.0383174,2310.9,2310.6,0.10941328]
[1726485748569,3.0383174,2310.9,2310.6,0.10941328]
[1726485748914,0.0383174,2310.9,2310.6,0.10941328]
[1726485750620,0.0383174,2310.9,2310.6,1.0842641]
[1726485751282,0.0383174,2310.9,2310.7,6.50959327]
[1726485751682,0.5883174,2310.9,2310.8,0.10876842]
[1726485752117,0.5883174,2310.9,2310.7,6.50959327]
[1726485752292,0.5883174,2310.9,2310.8,0.10876842]
[1726485752714,0.5883174,2310.9,2310.7,4.21999327]
[1726485753024,0.5883174,2310.9,2310.8,0.10876842]
[1726485753827,0.5883174,2310.9,2310.6,0.97485082]
[1726485754119,0.0383174,2310.9,2310.8,2.41516842]
[1726485754283,0.0383174,2310.9,2310.8,2.3064]
[1726485754479,0.0383174,2310.9,2310.8,2.41516842]
[1726485755111,0.0383174,2310.9,2310.8,0.10876842]
[1726485755507,0.0383174,2310.9,2310.7,4.21999327]
[1726485755689,0.0383174,2310.9,2310.8,0.10876842]
[1726485756098,0.0383174,2310.9,2310.7,4.21999327]
[1726485756328,0.0383174,2310.9,2310.8,0.10876842]
[1726485756688,0.0383174,2310.9,2310.7,4.21999327]
[1726485756927,0.0383174,2310.9,2310.8,0.10876842]
[1726485757621,0.0383174,2310.9,2310.7,4.21999327]
[1726485757830,0.0383174,2310.9,2310.8,0.76233775]
[1726485758012,0.0383174,2310.9,2310.8,0.10876842]
[1726485758527,0.0383174,2310.9,2310.7,4.21999327]
[1726485758727,0.0383174,2310.9,2310.8,0.10876842]
[1726485759034,0.0383174,2310.9,2310.7,4.21999327]
[1726485759189,0.0383174,2310.9,2310.8,0.10876842]
[1726485759383,0.0383174,2310.9,2310.7,4.21999327]
[1726485759585,0.0383174,2310.9,2310.8,0.10876842]
[1726485759899,0.0383174,2310.9,2310.7,5.3063476]
[1726485760101,0.0383174,2310.9,2310.8,0.10876842]
[1726485760533,0.0383174,2310.9,2310.7,5.3063476]
[1726485760833,0.0383174,2310.9,2310.8,0.10876842]
[1726485760995,0.0383174,2310.9,2310.7,4.21999327]
[1726485761501,0.0383174,2310.9,2310.8,0.10876842]
[1726485761891,0.0383174,2310.9,2310.7,4.21999327]
[1726485762104,0.0383174,2310.9,2310.8,0.10876842]
[1726485762629,0.0383174,2310.9,2310.7,4.21999327]
[1726485762923,0.0383174,2310.9,2310.8,0.10876842]
[1726485763340,0.0383174,2310.9,2310.7,5.3063676]
[1726485763493,0.0383174,2310.9,2310.8,0.10876842]
[1726485763692,0.0383174,2310.9,2310.7,5.3063676]
[1726485763929,0.0383174,2310.9,2310.8,0.10876842]
[1726485764424,0.0383174,2310.9,2310.7,1.94628755]
[1726485764641,4.32773,2310.7,2310.1,0.8975763]
[1726485764840,4.32773,2310.7,2310.0,13.07520445]
[1726485764841,1.202873,2310.6,2310.3,1.94628755]
[1726485764987,0.7151,2310.6,2310.5,1.94628755]
[1726485765336,0.55,2310.6,2310.5,1.94628755]
[1726485765839,4.87788,2310.6,2310.5,1.94628755]
[1726485766192,0.55,2310.7,2310.5,1.94628755]
[1726485766414,4.87777,2310.7,2310.5,1.94628755]
[1726485766805,4.87777,2310.7,2310.6,0.10868655]
[1726485768337,0.0383174,2310.9,2310.6,0.10868655]
[1726485768633,3.0383174,2310.9,2310.7,1.94628755]
[1726485768992,7.3656474,2310.9,2310.8,0.10868655]
[1726485769271,7.3656474,2310.9,2310.7,1.94628755]
[1726485769435,0.0383174,2310.9,2310.8,0.10868655]
[1726485769596,0.0383174,2310.9,2310.8,3.07248141]
[1726485769945,0.0383174,2310.9,2310.8,3.18077901]
[1726485771929,0.0383174,2310.9,2310.8,0.74657901]
[1726485773455,0.5883174,2310.9,2310.8,0.1082976]
[1726485773602,0.5883174,2310.9,2310.7,4.21612688]
[1726485774109,4.9156274,2310.9,2310.8,0.10808271]
[1726485774307,4.9156274,2310.9,2310.5,4.21612688]
[1726485774515,4.9156274,2310.9,2310.8,0.10808271]
[1726485774748,4.9156274,2310.9,2310.5,4.21612688]
[1726485774951,4.9156274,2310.9,2310.8,0.10808271]
[1726485775244,4.9156274,2310.9,2310.5,4.21612688]
[1726485775438,4.9156274,2310.9,2310.8,0.10808271]
[1726485775603,0.55,2310.8,2310.5,4.21612688]
[1726485775803,0.55,2310.8,2310.6,0.10806224]
[1726485776199,4.8775,2310.8,2310.6,0.10806224]
[1726485776404,4.8775,2310.8,2310.3,4.21612688]
[1726485776643,4.8775,2310.8,2310.4,0.10440645]
[1726485778706,9.2051,2310.8,2310.4,0.10440645]
[1726485778911,4.8775,2310.8,2310.4,0.10440645]
[1726485781031,0.55,2310.6,2310.4,0.10440645]
[1726485781229,4.49289,2310.7,2310.4,0.10440645]
[1726485781230,1.054289,2310.5,2310.4,0.10440645]
[1726485781530,0.55,2310.5,2310.4,0.10440645]
[1726485782025,0.55,2310.6,2310.4,0.10440645]
[1726485783164,4.8779,2310.6,2310.4,0.10440645]
[1726485783464,5.814978,2310.6,2310.4,0.10440645]
[1726485783857,1.487078,2310.6,2310.4,0.10440645]
[1726485784312,1.487078,2310.6,2310.1,4.21612688]
[1726485784571,0.55,2310.6,2310.5,0.10451884]
[1726485784778,0.55,2310.6,2310.3,4.21612688]
[1726485784930,0.55,2310.6,2310.5,0.10451884]
[1726485785138,0.55,2310.6,2310.3,4.21612688]
[1726485785373,0.55,2310.6,2310.5,0.10451884]
[1726485785841,0.55,2310.6,2310.3,4.21612688]
[1726485786047,0.55,2310.6,2310.5,0.10451884]
[1726485786245,0.55,2310.6,2310.3,4.21612688]
[1726485786431,0.55,2310.6,2310.5,0.10451884]
[1726485786638,0.55,2310.6,2310.3,4.21612688]
[1726485786878,0.55,2310.6,2310.5,0.10451884]
[1726485787083,0.55,2310.6,2310.3,4.21612688]
[1726485787250,0.55,2310.6,2310.5,0.10451884]
[1726485787449,0.55,2310.6,2310.3,4.21612688]
[1726485787780,0.55,2310.6,2310.5,0.10451884]
[1726485787964,0.55,2310.6,2310.3,4.21612688]
[1726485788164,0.55,2310.6,2310.5,0.10451884]
[1726485788375,0.55,2310.6,2310.3,4.21612688]
[1726485788580,0.55,2310.6,2310.5,0.10451884]
[1726485788756,0.55,2310.6,2310.3,4.21612688]
[1726485788951,0.55,2310.6,2310.5,0.10451884]
[1726485789158,0.55,2310.6,2310.3,4.21612688]
[1726485789456,0.55,2310.6,2310.4,1.30167596]
[1726485789649,0.55,2310.6,2310.4,0.10451884]
[1726485791968,0.55,2310.6,2310.5,1.9465891]
[1726485792478,0.55,2310.6,2310.5,2.05125095]
[1726485792681,0.55,2310.6,2310.5,0.10466185]
[1726485792870,0.55,2310.6,2310.2,3.29295355]
[1726485792871,0.1651,2310.7,2310.2,2.8441654]
[1726485793175,0.1651,2310.7,2310.5,0.10468229]
[1726485793381,0.1651,2310.7,2310.3,0.8975763]
[1726485793565,0.7151,2310.7,2310.6,0.10468229]
[1726485793738,1.22318174,2310.7,2310.2,7.1726954]
[1726485793944,1.22318174,2310.7,2310.6,0.10468229]
[1726485793945,0.7151,2310.7,2310.6,0.10468229]
[1726485794141,0.0383174,2310.9,2310.6,1.9465891]
[1726485794387,0.0383174,2310.9,2310.6,2.05127139]
[1726485794954,0.0383174,2310.9,2310.6,0.10468229]
[1726485795157,0.1651,2310.8,2310.6,0.10468229]
[1726485795356,0.55,2310.7,2310.4,1.9465891]
[1726485796948,0.55,2310.7,2310.5,0.10470273]
[1726485799764,0.55,2310.7,2310.6,1.9465891]
[1726485800087,0.1651,2310.8,2310.6,1.9465891]
[1726485800260,0.0383174,2310.9,2310.6,4.41579183]
[1726485800461,0.0383174,2310.9,2310.8,1.9465891]
[1726485800861,0.0383174,2310.9,2310.8,2.05122033]
[1726485806914,0.2034174,2310.9,2310.8,0.10463123]
[1726485807221,0.2034174,2310.9,2310.6,1.9465891]
[1726485807377,0.2034174,2310.9,2310.8,0.10431451]
[1726485807378,0.7534174,2310.9,2310.8,0.10431451]
[1726485807779,0.7534174,2310.9,2310.6,1.9465891]
[1726485808021,0.7534174,2310.9,2310.8,0.10431451]
[1726485808192,0.7534174,2310.9,2310.6,1.9465891]
[1726485808389,0.2034174,2310.9,2310.8,2.05090361]
[1726485812423,0.2034174,2310.9,2310.8,0.10431451]
[1726485812785,0.2034174,2310.9,2310.6,1.9465891]
[1726485813311,0.2034174,2310.9,2310.7,0.10420213]
[1726485816460,0.0383174,2310.9,2310.8,1.9465891]
[1726485816950,0.0383174,2310.9,2310.8,2.05088317]
[1726485819962,0.2034174,2310.9,2310.8,0.10429407]
[1726485820695,0.2034174,2310.9,2310.0,0.8975763]
[1726485820696,0.55,2310.6,2310.0,0.8975763]
[1726485820863,0.1651,2310.5,2310.1,3.25183473]
[1726485821067,0.1651,2310.5,2309.9,0.8975763]
[1726485821068,0.1651,2310.4,2309.9,0.8975763]
[1726485821398,0.1651,2310.2,2309.6,0.8975763]
[1726485821598,2.1116891,2310.2,2309.5,0.8975763]
[1726485821766,0.1651,2310.0,2309.6,3.25117041]
[1726485821950,0.1651,2310.0,2309.4,0.8975763]
[1726485822148,0.1651,2310.0,2309.5,1.30057863]
[1726485822365,1.01545393,2310.0,2309.3,18.4788896]
[1726485822590,1.01545393,2310.0,2309.4,3.24863767]
[1726485822752,0.1651,2310.0,2309.3,18.4788896]
[1726485823090,0.1651,2310.0,2309.4,1.29959256]
[1726485823247,0.1651,2310.0,2309.3,18.4788896]
[1726485823450,0.53661,2310.0,2309.4,1.29880712]
[1726485823692,0.53661,2310.0,2309.3,17.5813133]
[1726485824153,0.53661,2310.0,2309.4,1.29880041]
[1726485824359,0.53661,2310.0,2309.3,17.5813133]
[1726485824902,0.1651,2310.1,2309.6,4.22227037]
[1726485825066,0.1651,2310.3,2309.9,4.22227037]
[1726485826950,0.1651,2310.3,2310.0,0.09832489]
[1726485833596,0.1651,2310.3,2309.7,6.60667037]
[1726485833825,0.1651,2310.3,2310.1,0.09832489]
[1726485834112,0.1651,2310.3,2310.2,0.09832489]
[1726485834314,0.1651,2310.3,2309.7,10.93622037]
[1726485834471,0.1651,2310.3,2310.2,0.09911059]
[1726485834772,0.1651,2310.3,2309.7,10.93622037]
[1726485834975,0.1651,2310.3,2310.2,0.09911059]
[1726485835213,0.1651,2310.3,2309.7,10.93622037]
[1726485835389,0.1651,2310.3,2310.2,0.09911059]
[1726485835586,0.1651,2310.3,2309.7,10.93622037]
[1726485835806,0.1651,2310.3,2310.2,0.09911059]
[1726485835992,0.1651,2310.3,2309.7,10.93622037]
[1726485836193,0.1651,2310.3,2310.2,0.09911059]
[1726485836391,0.1651,2310.3,2309.7,6.60667037]
[1726485836593,0.1651,2310.3,2310.2,0.09911059]
[1726485836807,0.1651,2310.3,2309.7,6.60667037]
[1726485837006,0.1651,2310.3,2310.2,0.09911059]
[1726485837193,0.1651,2310.3,2309.7,6.60667037]
[1726485837403,0.55,2310.3,2310.2,0.09879412]
[1726485837602,0.1651,2310.1,2309.5,6.60187037]
[1726485838432,0.1651,2310.1,2309.5,4.22227037]
[1726485838586,0.1651,2309.9,2309.3,24.18318367]
[1726485840007,0.53661,2309.9,2309.3,24.18318367]
[1726485840180,0.53661,2309.9,2309.5,4.22227037]
[1726485841955,3.1651,2310.1,2309.7,4.22227037]
[1726485842226,3.0,2310.1,2309.9,4.22227037]
[1726485842437,0.1651,2310.2,2309.9,4.22227037]
[1726485842802,0.1651,2310.2,2310.0,0.09914122]
[1726485843750,0.61790915,2310.2,2310.0,0.09914122]
[1726485844041,0.45280915,2310.2,2310.0,0.09914122]
[1726485845147,0.45280915,2310.2,2310.1,4.22227037]
[1726485845350,0.45280915,2310.2,2310.1,4.32143199]
[1726485847003,0.45280915,2310.2,2310.1,0.09916162]
[1726485847441,0.45280915,2310.2,2309.9,4.22227037]
[1726485847610,0.61790915,2310.2,2310.1,0.09902891]
[1726485847813,0.61790915,2310.2,2309.5,4.22227037]
[1726485847814,1.16790915,2310.2,2309.5,4.22227037]
[1726485848015,1.16790915,2310.2,2310.1,0.09902891]
[1726485848234,1.16790915,2310.2,2309.7,4.22227037]
[1726485848455,1.16790915,2310.2,2310.1,0.09902891]
[1726485848619,1.16790915,2310.2,2309.7,4.22227037]
[1726485849148,0.61790915,2310.2,2309.9,4.22227037]